{"text_format":"3","workbook":"xlsx","n_sheets":3,"sheets":["Artículos","Envíos","Publicaciones"],"not_rendered":{"images":1,"defined_names":2},"read":"whole","date_system":"1900"}

{"sheet":"Artículos","index":0,"n_rows":10,"n_cols":7,"rows_kept":10}
[{"$nulls":6}," "]
[]
[]
[null,"Título","Estado","Recuento de palabras","Tipo de artículo","Resumen"]
[null,"Llamada por Nightfall","Completado",{"v":5710,"d":"5,710"},"Historia breve","Una leve ficción de suspenso sobre un detective en secreto."]
[null,"El papel tapiz azul","Completado",{"v":4525,"d":"4,525"},"Historia breve","Inspiradora historia de diseño de casas."]
[null,"Amor después de amor","Completado",438,"Entrada de blog","Una segunda oportunidad de amor."]
[null,"El traje más peligroso","En curso",550,"Promoción","Pieza promocional para un diseñador de camisetas."]
[null,"La misión Legendaria","Completado",520,"Entrada de blog","Historia rápida en una misión espacial."]
[null,"Trimestre antiguo","Completado",290,"Entrada de blog","Artículo deportivo sobre las coincidencias finales."]

{"sheet":"Envíos","index":1,"n_rows":11,"n_cols":8,"rows_kept":11}
[{"$nulls":7}," "]
[]
[]
[null,"Fecha \nEnviado","Título de la historia","Nombre de la publicación","Estado","Fecha \nPublicado","Pago \nRecibido por"]
[null,{"$f":"TODAY()-21","v":"2022-07-25"},"Llamada por Nightfall","Joven en la revista del corazón","Rechazado"]
[null,{"$f":"TODAY()-9","v":"2022-08-06"},"El papel tapiz azul","Joven en la revista del corazón","Aceptado",{"$f":"TODAY()-4","v":"2022-08-11"},{"v":300,"d":"300.00 € "}]
[null,{"$f":"TODAY()-9","v":"2022-08-06"},"El papel tapiz azul","Motivos digitales","Aceptado",{"$f":"TODAY()-2","v":"2022-08-13"},{"v":350,"d":"350.00 € "}]
[null,{"$f":"TODAY()-7","v":"2022-08-08"},"Amor después de amor","¡Obtenga esto!.","Enviado"]
[null,{"$f":"TODAY()-6","v":"2022-08-09"},"La misión Legendaria","Motivos digitales","Aceptado",{"$f":"TODAY()-4","v":"2022-08-11"},{"v":150,"d":"150.00 € "}]
[null,{"$f":"TODAY()-6","v":"2022-08-09"},"Trimestre antiguo","¡Obtenga esto!.","Aceptado",{"$f":"TODAY()-3","v":"2022-08-12"},{"v":100,"d":"100.00 € "}]
[null,{"$f":"TODAY()-6","v":"2022-08-09"},"Trimestre antiguo","Motivos digitales","Enviado"]

{"sheet":"Publicaciones","index":2,"n_rows":7,"n_cols":8,"rows_kept":7}
[{"$nulls":7}," "]
[]
[]
[null,"Nombre","Tipo","Fechas límites","Total \nEnvíos","Total\nAceptado","Total \nGanancias"]
[null,"Motivos digitales","Otro","Dos semanas después de la solicitud",{"$f":"COUNTIF(Tabla_Envíos[Nombre de la publicación],Tabla_Publicaciones[[#This Row],[Nombre]])","v":3},{"$f":"COUNTIFS(Tabla_Envíos[Nombre de la publicación],Tabla_Publicaciones[[#This Row],[Nombre]],Tabla_Envíos[Estado],\"Aceptado\")","v":2},{"$f":"SUMIF(Tabla_Envíos[Nombre de la publicación],Tabla_Publicaciones[[#This Row],[Nombre]],Tabla_Envíos[Pago \nRecibido por])","v":{"v":500,"d":"500.00 € "}}]
[null,"Joven en la revista del corazón","SFWA","Cada 3er del mes",{"$f":"COUNTIF(Tabla_Envíos[Nombre de la publicación],Tabla_Publicaciones[[#This Row],[Nombre]])","v":2},{"$f":"COUNTIFS(Tabla_Envíos[Nombre de la publicación],Tabla_Publicaciones[[#This Row],[Nombre]],Tabla_Envíos[Estado],\"Aceptado\")","v":1},{"$f":"SUMIF(Tabla_Envíos[Nombre de la publicación],Tabla_Publicaciones[[#This Row],[Nombre]],Tabla_Envíos[Pago \nRecibido por])","v":{"v":300,"d":"300.00 € "}}]
[null,"¡Obtenga esto!.","SFWA","Cada lunes",{"$f":"COUNTIF(Tabla_Envíos[Nombre de la publicación],Tabla_Publicaciones[[#This Row],[Nombre]])","v":2},{"$f":"COUNTIFS(Tabla_Envíos[Nombre de la publicación],Tabla_Publicaciones[[#This Row],[Nombre]],Tabla_Envíos[Estado],\"Aceptado\")","v":1},{"$f":"SUMIF(Tabla_Envíos[Nombre de la publicación],Tabla_Publicaciones[[#This Row],[Nombre]],Tabla_Envíos[Pago \nRecibido por])","v":{"v":100,"d":"100.00 € "}}]